[Event "Late-Titled-Tuesday-Blitz-February-06-2024"]
[Site "Chess.com"]
[Date "2024.02.06"]
[Round "3"]
[White "Grindaveci"]
[Black "MatyChess1"]
[Result "1-0"]
[WhiteElo "2450"]
[BlackElo "2629"]
[TimeControl "180+1"]
[EndTime "14:30:02 PST"]
[Termination "Grindaveci won on time"]

1. e4 {[%clk 0:02:59.7]} 1... c6 {[%clk 0:03:00.2]} 2. d4 {[%clk 0:02:59.7]}
2... d5 {[%clk 0:03:01.1]} 3. e5 {[%clk 0:02:57.6]} 3... Bf5 {[%clk 0:03:01.7]}
4. h4 {[%clk 0:02:57.4]} 4... h5 {[%clk 0:03:01.1]} 5. Bd3 {[%clk 0:02:57.9]}
5... Bxd3 {[%clk 0:02:59.7]} 6. Qxd3 {[%clk 0:02:58.8]} 6... e6 {[%clk
0:03:00.4]} 7. Bg5 {[%clk 0:02:58.8]} 7... Qa5+ {[%clk 0:02:57.6]} 8. Nd2 {[%clk
0:02:58.7]} 8... Ne7 {[%clk 0:02:50]} 9. Nf3 {[%clk 0:02:52.3]} 9... Nf5 {[%clk
0:02:50.2]} 10. O-O {[%clk 0:02:52.5]} 10... c5 {[%clk 0:02:34.9]} 11. c4 {[%clk
0:02:51.8]} 11... Nc6 {[%clk 0:02:34.5]} 12. cxd5 {[%clk 0:02:45.2]} 12... Nb4
{[%clk 0:02:34.7]} 13. Qe4 {[%clk 0:02:31.8]} 13... Nxd5 {[%clk 0:02:33.2]} 14.
Nb3 {[%clk 0:02:30.1]} 14... Qb4 {[%clk 0:02:29.9]} 15. Rfc1 {[%clk 0:02:15.6]}
15... Rc8 {[%clk 0:02:30.3]} 16. Qd3 {[%clk 0:02:08.2]} 16... c4 {[%clk
0:02:29.2]} 17. Qc2 {[%clk 0:01:44.1]} 17... b5 {[%clk 0:02:11.1]} 18. Nbd2
{[%clk 0:01:40.8]} 18... Be7 {[%clk 0:02:01.7]} 19. Ne4 {[%clk 0:01:40.7]} 19...
Bxg5 {[%clk 0:02:00.8]} 20. Nexg5 {[%clk 0:01:40.8]} 20... O-O {[%clk
0:01:58.1]} 21. a3 {[%clk 0:01:31.6]} 21... Qb3 {[%clk 0:01:49.7]} 22. Qxb3
{[%clk 0:01:05.5]} 22... cxb3 {[%clk 0:01:50.6]} 23. Ne4 {[%clk 0:01:06.2]}
23... a5 {[%clk 0:01:49.3]} 24. a4 {[%clk 0:01:06.3]} 24... Rxc1+ {[%clk
0:01:36.9]} 25. Rxc1 {[%clk 0:01:06.2]} 25... bxa4 {[%clk 0:01:37.8]} 26. Ra1
{[%clk 0:01:04.9]} 26... Nb6 {[%clk 0:01:31.9]} 27. Nc5 {[%clk 0:01:02.1]} 27...
Rd8 {[%clk 0:01:27.6]} 28. Nxa4 {[%clk 0:01:02.1]} 28... Nc4 {[%clk 0:01:26.3]}
29. Rc1 {[%clk 0:00:55.1]} 29... Rc8 {[%clk 0:01:12.8]} 30. Rc3 {[%clk
0:00:48.6]} 30... Ne7 {[%clk 0:00:42.5]} 31. Rxb3 {[%clk 0:00:32.7]} 31... Nd5
{[%clk 0:00:43]} 32. Rb5 {[%clk 0:00:28.2]} 32... Kh7 {[%clk 0:00:40.1]} 33.
Ng5+ {[%clk 0:00:28]} 33... Kg6 {[%clk 0:00:40.3]} 34. Ne4 {[%clk 0:00:27.8]}
34... Kf5 {[%clk 0:00:36.5]} 35. Nec5 {[%clk 0:00:26.3]} 35... Nf4 {[%clk
0:00:19.8]} 36. Nc3 {[%clk 0:00:22.4]} 36... Kg4 {[%clk 0:00:08.7]} 37. g3
{[%clk 0:00:20.7]} 37... Ng6 {[%clk 0:00:03.4]} 38. Kg2 {[%clk 0:00:21.1]} 38...
Nd2 {[%clk 0:00:03.7]} 39. N3e4 {[%clk 0:00:11.9]} 39... Nxe4 {[%clk 0:00:03.2]}
40. Nxe4 {[%clk 0:00:12.8]} 40... Rc2 {[%clk 0:00:03.6]} 41. Nd6 {[%clk
0:00:11.8]} 41... a4 {[%clk 0:00:02.4]} 42. Rb4 {[%clk 0:00:09.4]} 42... Ne7
{[%clk 0:00:02.6]} 43. Rxa4 {[%clk 0:00:06.8]} 43... Nd5 {[%clk 0:00:02.7]} 44.
b4 {[%clk 0:00:06.1]} 44... Ne3+ {[%clk 0:00:03]} 45. Kg1 {[%clk 0:00:04.6]}
45... Rc1+ {[%clk 0:00:03.4]} 46. Kh2 {[%clk 0:00:05.1]} 46... Nf1+ {[%clk
0:00:04]} 47. Kg2 {[%clk 0:00:05.4]} 47... Nd2 {[%clk 0:00:03.6]} 48. Ra2 {[%clk
0:00:05.2]} 48... Nc4 {[%clk 0:00:02.7]} 49. b5 {[%clk 0:00:05.1]} 1-0

[Event "Late-Titled-Tuesday-Blitz-February-06-2024"]
[Site "Chess.com"]
[Date "2024.02.06"]
[Round "3"]
[White "Fh2411"]
[Black "AryanTari"]
[Result "0-1"]
[WhiteElo "2615"]
[BlackElo "2930"]
[TimeControl "180+1"]
[EndTime "14:30:04 PST"]
[Termination "AryanTari won by resignation"]

1. d4 {[%clk 0:02:59]} 1... Nf6 {[%clk 0:02:58.1]} 2. Nf3 {[%clk 0:02:59.1]}
2... g6 {[%clk 0:02:58.3]} 3. c4 {[%clk 0:02:59.8]} 3... Bg7 {[%clk 0:02:58.4]}
4. Nc3 {[%clk 0:03:00.5]} 4... d5 {[%clk 0:02:58.5]} 5. Bg5 {[%clk 0:03:00.4]}
5... Ne4 {[%clk 0:02:54.7]} 6. cxd5 {[%clk 0:02:55.9]} 6... Nxg5 {[%clk
0:02:54.4]} 7. Nxg5 {[%clk 0:02:53.3]} 7... e6 {[%clk 0:02:54]} 8. Nf3 {[%clk
0:02:45]} 8... exd5 {[%clk 0:02:54]} 9. e3 {[%clk 0:02:45.7]} 9... O-O {[%clk
0:02:54.3]} 10. Be2 {[%clk 0:02:45.6]} 10... c6 {[%clk 0:02:53.3]} 11. O-O
{[%clk 0:02:45.9]} 11... Re8 {[%clk 0:02:53.5]} 12. b4 {[%clk 0:02:45.9]} 12...
Nd7 {[%clk 0:02:44]} 13. b5 {[%clk 0:02:43.2]} 13... Qa5 {[%clk 0:02:32.8]} 14.
Qb3 {[%clk 0:02:17.3]} 14... Nb6 {[%clk 0:02:25]} 15. bxc6 {[%clk 0:02:11.5]}
15... bxc6 {[%clk 0:02:24.6]} 16. Rfc1 {[%clk 0:02:11.8]} 16... Ba6 {[%clk
0:02:18.8]} 17. Bxa6 {[%clk 0:01:50.9]} 17... Qxa6 {[%clk 0:02:19.7]} 18. Nd2
{[%clk 0:01:51]} 18... Rab8 {[%clk 0:02:05.2]} 19. Qc2 {[%clk 0:01:48.3]} 19...
Nd7 {[%clk 0:01:52.2]} 20. Na4 {[%clk 0:01:38.6]} 20... Rb4 {[%clk 0:01:51.5]}
21. Nc5 {[%clk 0:01:38.3]} 21... Nxc5 {[%clk 0:01:51.6]} 22. Qxc5 {[%clk
0:01:33.9]} 22... Rb6 {[%clk 0:01:33.7]} 23. Nb3 {[%clk 0:01:32.3]} 23... Bf8
{[%clk 0:01:33.5]} 24. Qa5 {[%clk 0:01:21.4]} 24... Qb7 {[%clk 0:01:33.2]} 25.
Qd2 {[%clk 0:01:13.4]} 25... Bb4 {[%clk 0:01:29]} 26. Qd3 {[%clk 0:01:12.7]}
26... Bd6 {[%clk 0:01:26.6]} 27. g3 {[%clk 0:01:09.6]} 27... Rb5 {[%clk
0:01:21.3]} 28. Rc3 {[%clk 0:00:46.4]} 28... Bb4 {[%clk 0:01:13.1]} 29. Rc2
{[%clk 0:00:45]} 29... Ba3 {[%clk 0:01:13.3]} 30. Nd2 {[%clk 0:00:37.6]} 30...
Qa6 {[%clk 0:01:12.9]} 31. Kg2 {[%clk 0:00:36.2]} 31... Reb8 {[%clk 0:01:09.8]}
32. Nf3 {[%clk 0:00:33]} 32... Bd6 {[%clk 0:01:05.8]} 33. Rac1 {[%clk
0:00:30.3]} 33... R8b6 {[%clk 0:01:03.4]} 34. h4 {[%clk 0:00:28.6]} 34... Ra5
{[%clk 0:01:00.5]} 35. Qd2 {[%clk 0:00:24.1]} 35... Bb4 {[%clk 0:00:55.9]} 36.
Qe2 {[%clk 0:00:21.6]} 36... Qxe2 {[%clk 0:00:54.4]} 37. Rxe2 {[%clk 0:00:22.5]}
37... Bd6 {[%clk 0:00:53]} 38. Ne1 {[%clk 0:00:12.3]} 38... Ba3 {[%clk
0:00:46.9]} 39. Rcc2 {[%clk 0:00:12.6]} 39... Rba6 {[%clk 0:00:45.2]} 40. Nd3
{[%clk 0:00:12.8]} 40... Bd6 {[%clk 0:00:45.8]} 41. Kf3 {[%clk 0:00:11.9]} 41...
Kf8 {[%clk 0:00:45.8]} 42. Kg4 {[%clk 0:00:11.9]} 42... h5+ {[%clk 0:00:43.9]}
43. Kf3 {[%clk 0:00:12.4]} 43... Ke7 {[%clk 0:00:43.9]} 44. Kg2 {[%clk
0:00:09.1]} 44... Ra3 {[%clk 0:00:43.9]} 45. Ne1 {[%clk 0:00:06.9]} 45... Kd7
{[%clk 0:00:43.5]} 46. Nf3 {[%clk 0:00:07.2]} 46... f6 {[%clk 0:00:43.6]} 47.
Nd2 {[%clk 0:00:07.6]} 47... Rxa2 {[%clk 0:00:42.2]} 48. Nb3 {[%clk 0:00:05.6]}
48... Rxc2 {[%clk 0:00:42.3]} 49. Rxc2 {[%clk 0:00:06.5]} 49... Ra3 {[%clk
0:00:42.7]} 50. Nd2 {[%clk 0:00:05.6]} 50... a5 {[%clk 0:00:43]} 51. e4 {[%clk
0:00:05.9]} 51... dxe4 {[%clk 0:00:43]} 52. Nxe4 {[%clk 0:00:06.8]} 52... Be7
{[%clk 0:00:43.6]} 53. Rd2 {[%clk 0:00:05.4]} 53... Ke6 {[%clk 0:00:42.8]} 54.
Rc2 {[%clk 0:00:03]} 54... Kd5 {[%clk 0:00:41.8]} 55. Nd2 {[%clk 0:00:03.8]}
55... Rd3 {[%clk 0:00:39.5]} 56. Nf3 {[%clk 0:00:03.9]} 56... a4 {[%clk
0:00:39.4]} 57. Re2 {[%clk 0:00:01.5]} 57... Bd6 {[%clk 0:00:39]} 58. Re8 {[%clk
0:00:02.4]} 58... a3 {[%clk 0:00:37.5]} 59. Ra8 {[%clk 0:00:03.3]} 59... Rd1
{[%clk 0:00:36.1]} 60. Ra5+ {[%clk 0:00:03.8]} 60... Kc4 {[%clk 0:00:36.3]} 61.
Ra6 {[%clk 0:00:04.5]} 61... Kb3 {[%clk 0:00:36.1]} 62. Rxc6 {[%clk 0:00:04.6]}
62... a2 {[%clk 0:00:36.4]} 63. Rb6+ {[%clk 0:00:05]} 63... Bb4 {[%clk
0:00:36.6]} 0-1

[Event "Late-Titled-Tuesday-Blitz-February-06-2024"]
[Site "Chess.com"]
[Date "2024.02.06"]
[Round "3"]
[White "masnyszachistaaa"]
[Black "FaustinoOro"]
[Result "0-1"]
[WhiteElo "2542"]
[BlackElo "2746"]
[TimeControl "180+1"]
[EndTime "14:30:04 PST"]
[Termination "FaustinoOro won by resignation"]

1. c4 {[%clk 0:03:00.9]} 1... e5 {[%clk 0:02:59.3]} 2. Nc3 {[%clk 0:03:00.2]}
2... Nf6 {[%clk 0:02:58.9]} 3. Nf3 {[%clk 0:02:59.9]} 3... Nc6 {[%clk
0:02:58.3]} 4. e3 {[%clk 0:02:55.5]} 4... Bb4 {[%clk 0:02:56.4]} 5. Qc2 {[%clk
0:02:53.4]} 5... O-O {[%clk 0:02:49.9]} 6. Nd5 {[%clk 0:02:53.4]} 6... Bc5
{[%clk 0:02:41.6]} 7. d3 {[%clk 0:02:42.7]} 7... d6 {[%clk 0:02:38.8]} 8. Nxf6+
{[%clk 0:02:26.8]} 8... Qxf6 {[%clk 0:02:38.5]} 9. Be2 {[%clk 0:02:27.7]} 9...
a5 {[%clk 0:02:35.6]} 10. O-O {[%clk 0:02:19]} 10... h6 {[%clk 0:02:34.6]} 11.
Nd2 {[%clk 0:01:42.2]} 11... Qg6 {[%clk 0:02:29.1]} 12. Ne4 {[%clk 0:01:38.4]}
12... Bb6 {[%clk 0:02:24.5]} 13. Ng3 {[%clk 0:01:37.6]} 13... f5 {[%clk
0:02:19.6]} 14. Bf3 {[%clk 0:01:13.1]} 14... Bd7 {[%clk 0:02:13.9]} 15. Bd2
{[%clk 0:01:12.8]} 15... Qf6 {[%clk 0:02:03.3]} 16. Rfe1 {[%clk 0:01:01]} 16...
Rae8 {[%clk 0:01:57.4]} 17. a3 {[%clk 0:00:45.5]} 17... Qh4 {[%clk 0:01:31.3]}
18. b4 {[%clk 0:00:37.2]} 18... f4 {[%clk 0:01:30.3]} 19. Ne4 {[%clk 0:00:26.9]}
19... Bg4 {[%clk 0:01:11.1]} 20. Bxg4 {[%clk 0:00:25.3]} 20... Qxg4 {[%clk
0:01:11.3]} 21. h3 {[%clk 0:00:19.9]} 21... Qg6 {[%clk 0:01:04.4]} 22. c5 {[%clk
0:00:18.2]} 22... f3 {[%clk 0:01:01.4]} 23. Ng3 {[%clk 0:00:18.1]} 23... Ba7
{[%clk 0:00:56.5]} 24. Rac1 {[%clk 0:00:14.5]} 24... Rf7 {[%clk 0:00:52.8]} 25.
Bc3 {[%clk 0:00:14.2]} 25... Ref8 {[%clk 0:00:50.4]} 26. d4 {[%clk 0:00:10.9]}
26... Qe6 {[%clk 0:00:40.4]} 27. dxe5 {[%clk 0:00:02.6]} 27... dxc5 {[%clk
0:00:30.8]} 28. b5 {[%clk 0:00:01.4]} 28... Ne7 {[%clk 0:00:30.8]} 29. Rf1
{[%clk 0:00:01.5]} 29... fxg2 {[%clk 0:00:23.9]} 30. Kxg2 {[%clk 0:00:02.4]}
30... Ng6 {[%clk 0:00:24.2]} 31. Qe4 {[%clk 0:00:02.8]} 31... Rf3 {[%clk
0:00:13.8]} 32. Bd2 {[%clk 0:00:02.1]} 32... c6 {[%clk 0:00:07.2]} 33. Bb4
{[%clk 0:00:02.4]} 33... axb4 {[%clk 0:00:07.2]} 34. axb4 {[%clk 0:00:02.2]}
34... cxb4 {[%clk 0:00:07.4]} 35. bxc6 {[%clk 0:00:02.2]} 35... Nxe5 {[%clk
0:00:04.3]} 36. cxb7 {[%clk 0:00:02.1]} 36... Bb8 {[%clk 0:00:05]} 37. Rc8
{[%clk 0:00:01.6]} 37... Rxc8 {[%clk 0:00:04.2]} 38. bxc8=Q+ {[%clk 0:00:02.5]}
38... Qxc8 {[%clk 0:00:04.7]} 39. Qd5+ {[%clk 0:00:02.7]} 39... Kh8 {[%clk
0:00:04]} 40. Rd1 {[%clk 0:00:02.7]} 40... Rf8 {[%clk 0:00:04.1]} 41. Ne4 {[%clk
0:00:02.5]} 41... Ng6 {[%clk 0:00:04.2]} 42. Nc5 {[%clk 0:00:02.4]} 42... Nh4+
{[%clk 0:00:04.5]} 43. Kf1 {[%clk 0:00:02.2]} 43... Qxh3+ {[%clk 0:00:04.6]} 44.
Ke2 {[%clk 0:00:02.9]} 44... Qg4+ {[%clk 0:00:05.1]} 45. Kf1 {[%clk 0:00:02.2]}
45... Qf3 {[%clk 0:00:03.9]} 46. Qxf3 {[%clk 0:00:01.8]} 46... Nxf3 {[%clk
0:00:04.8]} 47. Ne6 {[%clk 0:00:02]} 47... Re8 {[%clk 0:00:04.6]} 48. Nc5 {[%clk
0:00:01.1]} 48... Be5 {[%clk 0:00:04.2]} 49. Nd3 {[%clk 0:00:01.3]} 49... Bc3
{[%clk 0:00:04.4]} 50. Rb1 {[%clk 0:00:02.2]} 50... Nd2+ {[%clk 0:00:04.3]} 51.
Ke2 {[%clk 0:00:02.4]} 51... Nxb1 {[%clk 0:00:05.2]} 0-1

[Event "Late-Titled-Tuesday-Blitz-February-06-2024"]
[Site "Chess.com"]
[Date "2024.02.06"]
[Round "3"]
[White "Titus369"]
[Black "TheoSlade"]
[Result "1/2-1/2"]
[WhiteElo "2665"]
[BlackElo "2466"]
[TimeControl "180+1"]
[EndTime "14:30:04 PST"]
[Termination "Game drawn - insufficient material"]

1. Nc3 {[%clk 0:03:00.9]} 1... d5 {[%clk 0:02:59.8]} 2. d4 {[%clk 0:02:54.5]}
2... Nf6 {[%clk 0:02:59.7]} 3. Bf4 {[%clk 0:02:50.6]} 3... e6 {[%clk 0:02:59.9]}
4. Nb5 {[%clk 0:02:41.5]} 4... Na6 {[%clk 0:03:00.3]} 5. c4 {[%clk 0:02:11.6]}
5... Bb4+ {[%clk 0:02:54.5]} 6. Nc3 {[%clk 0:02:10.9]} 6... dxc4 {[%clk
0:02:50.3]} 7. e3 {[%clk 0:02:08.9]} 7... Nd5 {[%clk 0:02:43.8]} 8. Rc1 {[%clk
0:02:00.2]} 8... Nxf4 {[%clk 0:02:42.8]} 9. exf4 {[%clk 0:01:59.7]} 9... b5
{[%clk 0:02:36.4]} 10. Nf3 {[%clk 0:01:56.6]} 10... O-O {[%clk 0:02:35.5]} 11.
Be2 {[%clk 0:01:55.7]} 11... Bb7 {[%clk 0:02:33.5]} 12. O-O {[%clk 0:01:55.7]}
12... Bxc3 {[%clk 0:02:33.4]} 13. Rxc3 {[%clk 0:01:54.7]} 13... c5 {[%clk
0:02:32.5]} 14. a4 {[%clk 0:01:51.9]} 14... Bxf3 {[%clk 0:02:15.4]} 15. Bxf3
{[%clk 0:01:50.5]} 15... cxd4 {[%clk 0:02:16]} 16. Rc1 {[%clk 0:01:49.5]} 16...
Rb8 {[%clk 0:02:09.2]} 17. axb5 {[%clk 0:01:49.2]} 17... Rxb5 {[%clk 0:02:09.7]}
18. Rxc4 {[%clk 0:01:49.2]} 18... Rxb2 {[%clk 0:02:00.2]} 19. Rxd4 {[%clk
0:01:46.9]} 19... Qf6 {[%clk 0:01:55.4]} 20. Rd7 {[%clk 0:01:44]} 20... Qxf4
{[%clk 0:01:51.4]} 21. Rxa7 {[%clk 0:01:42.5]} 21... Nc5 {[%clk 0:01:46]} 22. g3
{[%clk 0:01:41.4]} 22... Qb8 {[%clk 0:01:26]} 23. Ra8 {[%clk 0:01:39.2]} 23...
Qb6 {[%clk 0:01:17]} 24. Rxf8+ {[%clk 0:01:38.1]} 24... Kxf8 {[%clk 0:01:17.9]}
25. Qd4 {[%clk 0:01:37.6]} 25... Rb4 {[%clk 0:01:09.5]} 26. Qe3 {[%clk
0:01:33.2]} 26... Nd7 {[%clk 0:00:58.3]} 27. Qd3 {[%clk 0:01:26.9]} 27... Ne5
{[%clk 0:00:54.8]} 28. Qa3 {[%clk 0:01:21]} 28... Nxf3+ {[%clk 0:00:52.7]} 29.
Qxf3 {[%clk 0:01:21.9]} 29... h6 {[%clk 0:00:43.4]} 30. Qa3 {[%clk 0:01:17.7]}
30... Kg8 {[%clk 0:00:42]} 31. Qa8+ {[%clk 0:01:11.4]} 31... Kh7 {[%clk
0:00:42.1]} 32. Qf8 {[%clk 0:01:10.7]} 32... Qb7 {[%clk 0:00:38.3]} 33. h4
{[%clk 0:01:10.9]} 33... h5 {[%clk 0:00:36.4]} 34. Qc5 {[%clk 0:01:06.2]} 34...
g6 {[%clk 0:00:35.7]} 35. Qe5 {[%clk 0:01:01.6]} 35... Rb1 {[%clk 0:00:33.7]}
36. Rxb1 {[%clk 0:00:53.9]} 36... Qxb1+ {[%clk 0:00:34.1]} 37. Kg2 {[%clk
0:00:52.5]} 37... Qb7+ {[%clk 0:00:34.9]} 38. Kg1 {[%clk 0:00:52.3]} 38... Qd5
{[%clk 0:00:32.7]} 39. Qc7 {[%clk 0:00:50]} 39... Kg7 {[%clk 0:00:31.7]} 40.
Qc3+ {[%clk 0:00:49.3]} 40... e5 {[%clk 0:00:31.9]} 41. Qe3 {[%clk 0:00:46.3]}
41... Qd4 {[%clk 0:00:31.6]} 42. Qe2 {[%clk 0:00:37.4]} 42... e4 {[%clk
0:00:31.9]} 43. Kg2 {[%clk 0:00:35.6]} 43... Qd5 {[%clk 0:00:32.1]} 44. Qe3
{[%clk 0:00:35.5]} 44... Qd3 {[%clk 0:00:29.4]} 45. Qc5 {[%clk 0:00:33.1]} 45...
Qf3+ {[%clk 0:00:29.1]} 46. Kg1 {[%clk 0:00:32.2]} 46... e3 {[%clk 0:00:20.2]}
47. Qd4+ {[%clk 0:00:28.2]} 47... f6 {[%clk 0:00:14.1]} 48. Qa7+ {[%clk
0:00:25.6]} 48... Kh6 {[%clk 0:00:13.8]} 49. Qxe3+ {[%clk 0:00:24.9]} 49... Qxe3
{[%clk 0:00:14.2]} 50. fxe3 {[%clk 0:00:25.8]} 50... Kg7 {[%clk 0:00:11.8]} 51.
Kf2 {[%clk 0:00:26.2]} 51... Kf7 {[%clk 0:00:08.4]} 52. Kf3 {[%clk 0:00:27.1]}
52... Ke6 {[%clk 0:00:09]} 53. Ke4 {[%clk 0:00:27.5]} 53... g5 {[%clk 0:00:05]}
54. Kf3 {[%clk 0:00:18.8]} 54... Ke5 {[%clk 0:00:04.9]} 55. g4 {[%clk
0:00:14.1]} 55... gxh4 {[%clk 0:00:04.9]} 56. gxh5 {[%clk 0:00:14.2]} 56... Kf5
{[%clk 0:00:05.7]} 57. h6 {[%clk 0:00:13.8]} 57... Kg6 {[%clk 0:00:06.2]} 58.
Kg4 {[%clk 0:00:14.4]} 58... Kxh6 {[%clk 0:00:06.5]} 59. Kxh4 {[%clk 0:00:13.8]}
59... Kg6 {[%clk 0:00:07.2]} 60. Kg4 {[%clk 0:00:14.5]} 60... f5+ {[%clk
0:00:07.8]} 61. Kf4 {[%clk 0:00:15]} 61... Kf6 {[%clk 0:00:08.6]} 62. Kg3 {[%clk
0:00:15.6]} 62... Kg5 {[%clk 0:00:08.8]} 63. Kf3 {[%clk 0:00:16.5]} 63... Kf6
{[%clk 0:00:09.3]} 64. Kf4 {[%clk 0:00:17.4]} 64... Ke6 {[%clk 0:00:09.9]} 65.
e4 {[%clk 0:00:17.9]} 65... fxe4 {[%clk 0:00:10.4]} 66. Kxe4 {[%clk 0:00:17.6]}
1/2-1/2

[Event "Late-Titled-Tuesday-Blitz-February-06-2024"]
[Site "Chess.com"]
[Date "2024.02.06"]
[Round "3"]
[White "smotherhubbard"]
[Black "rcmz"]
[Result "1-0"]
[WhiteElo "2375"]
[BlackElo "2140"]
[TimeControl "180+1"]
[EndTime "14:30:04 PST"]
[Termination "smotherhubbard won on time"]

1. d4 {[%clk 0:03:00.9]} 1... Nf6 {[%clk 0:02:53.6]} 2. c4 {[%clk 0:03:00.3]}
2... e6 {[%clk 0:02:53.4]} 3. Nf3 {[%clk 0:02:58.9]} 3... b6 {[%clk 0:02:52.7]}
4. a3 {[%clk 0:02:59.3]} 4... Bb7 {[%clk 0:02:52.6]} 5. Nc3 {[%clk 0:02:59.9]}
5... Ne4 {[%clk 0:02:52.6]} 6. Qc2 {[%clk 0:02:46.3]} 6... f5 {[%clk 0:02:50.3]}
7. Bf4 {[%clk 0:02:42.5]} 7... Be7 {[%clk 0:02:46.6]} 8. h4 {[%clk 0:02:33.2]}
8... O-O {[%clk 0:02:43.2]} 9. e3 {[%clk 0:02:31.7]} 9... Nxc3 {[%clk
0:02:35.3]} 10. Qxc3 {[%clk 0:02:30]} 10... Bxf3 {[%clk 0:02:23.7]} 11. gxf3
{[%clk 0:02:30.9]} 11... Bxh4 {[%clk 0:02:22.7]} 12. Bd3 {[%clk 0:02:18.6]}
12... Bf6 {[%clk 0:02:12.7]} 13. O-O-O {[%clk 0:02:11.9]} 13... c5 {[%clk
0:02:03.8]} 14. Qd2 {[%clk 0:01:39.3]} 14... Nc6 {[%clk 0:01:45.4]} 15. d5
{[%clk 0:01:29.3]} 15... Na5 {[%clk 0:01:37.6]} 16. Qc2 {[%clk 0:01:15.1]} 16...
Qe7 {[%clk 0:01:30]} 17. e4 {[%clk 0:00:55.8]} 17... g6 {[%clk 0:01:17.4]} 18.
exf5 {[%clk 0:00:44.7]} 18... exf5 {[%clk 0:01:13]} 19. Rdg1 {[%clk 0:00:42]}
19... Be5 {[%clk 0:00:57]} 20. Bd2 {[%clk 0:00:33.3]} 20... Qf6 {[%clk
0:00:49.5]} 21. Rh6 {[%clk 0:00:26.4]} 21... Kg7 {[%clk 0:00:45.2]} 22. Rgh1
{[%clk 0:00:24.3]} 22... Rh8 {[%clk 0:00:44.2]} 23. f4 {[%clk 0:00:20.3]} 23...
Bd4 {[%clk 0:00:43]} 24. Bxa5 {[%clk 0:00:17.7]} 24... bxa5 {[%clk 0:00:42]} 25.
Qe2 {[%clk 0:00:17.8]} 25... Rab8 {[%clk 0:00:34.4]} 26. d6 {[%clk 0:00:12.8]}
26... Bxb2+ {[%clk 0:00:30.8]} 27. Kc2 {[%clk 0:00:11.8]} 27... Bd4 {[%clk
0:00:29.6]} 28. Qe7+ {[%clk 0:00:11.8]} 28... Qxe7 {[%clk 0:00:29]} 29. dxe7
{[%clk 0:00:12.7]} 29... Rbe8 {[%clk 0:00:28.9]} 30. Re1 {[%clk 0:00:11.8]}
30... Kf6 {[%clk 0:00:26.4]} 31. Rh3 {[%clk 0:00:09.9]} 31... Rxe7 {[%clk
0:00:26]} 32. Rxe7 {[%clk 0:00:09.3]} 32... Kxe7 {[%clk 0:00:26.1]} 33. Rh1
{[%clk 0:00:08.8]} 33... Bxf2 {[%clk 0:00:24.5]} 34. Rb1 {[%clk 0:00:09.1]}
34... Bg3 {[%clk 0:00:20.5]} 35. Rb7 {[%clk 0:00:08.7]} 35... Bxf4 {[%clk
0:00:20.1]} 36. Rxa7 {[%clk 0:00:07.8]} 36... h5 {[%clk 0:00:16.9]} 37. Rxa5
{[%clk 0:00:08.4]} 37... Be3 {[%clk 0:00:16.7]} 38. Be2 {[%clk 0:00:08.3]} 38...
h4 {[%clk 0:00:16]} 39. Bf3 {[%clk 0:00:08.3]} 39... h3 {[%clk 0:00:16.1]} 40.
Ra7 {[%clk 0:00:08.6]} 40... h2 {[%clk 0:00:15.2]} 41. Bh1 {[%clk 0:00:07.8]}
41... f4 {[%clk 0:00:14.3]} 42. Kd3 {[%clk 0:00:07.6]} 42... Rh3 {[%clk
0:00:12.5]} 43. Ke2 {[%clk 0:00:06.1]} 43... Rg3 {[%clk 0:00:12.5]} 44. a4
{[%clk 0:00:04.6]} 44... Rg1 {[%clk 0:00:11.9]} 45. Bf3 {[%clk 0:00:04.7]} 45...
h1=Q {[%clk 0:00:07.4]} 46. Bxh1 {[%clk 0:00:05.3]} 46... Rxh1 {[%clk
0:00:07.5]} 47. a5 {[%clk 0:00:06]} 47... Rh2+ {[%clk 0:00:07.7]} 48. Kf3 {[%clk
0:00:06.1]} 48... Ra2 {[%clk 0:00:07.1]} 49. a6 {[%clk 0:00:05.5]} 49... g5
{[%clk 0:00:06.1]} 50. Ra8 {[%clk 0:00:05.2]} 50... Kd6 {[%clk 0:00:02.5]} 51.
Kg4 {[%clk 0:00:05]} 51... Rg2+ {[%clk 0:00:01.5]} 52. Kf3 {[%clk 0:00:05]} 1-0